bitfinex/quotes_SOLUSD_20230702
["timestamp","ask_amount","ask_price","bid_price","bid_amount"]
[1688316327120,55.0,19.395,19.382,21.824]
[1688316327522,64.62709913,19.395,19.382,21.824]
[1688316329526,202.6563,19.4,19.382,21.824]
[1688316329713,9.62709913,19.398,19.382,21.824]
[1688316333020,55.0,19.396,19.382,21.824]
[1688316333215,21.811,19.394,19.382,21.824]
[1688316334923,55.0,19.393,19.382,21.824]
[1688316335137,21.814,19.391,19.382,21.824]
[1688316336018,75.0,19.39,19.379,21.827]
[1688316338022,96.9163,19.391,19.379,21.827]
[1688316338325,25.87969829,19.397,19.379,21.827]
[1688316338528,20.0,19.396,19.379,21.827]
[1688316338832,20.0,19.396,19.384,21.821]
[1688316339732,106.54339913,19.397,19.384,21.821]
[1688316339934,96.9163,19.397,19.384,21.821]
[1688316340529,111.02,19.41,19.385,55.0]
[1688316340834,97.9469,19.407,19.391,21.813]
[1688316341221,107.57399913,19.407,19.391,21.813]
[1688316342126,75.0,19.406,19.39,21.815]
[1688316342431,20.0,19.406,19.39,21.815]
[1688316342635,29.62709913,19.406,19.39,21.815]
[1688316343437,9.62709913,19.405,19.39,21.815]
[1688316343732,20.0,19.404,19.39,21.815]
[1688316344837,55.0,19.403,19.39,21.815]
[1688316345143,20.0,19.402,19.39,21.815]
[1688316346138,20.0,19.404,19.39,21.815]
[1688316346441,55.0,19.403,19.39,21.815]
[1688316346640,20.0,19.402,19.39,21.815]
[1688316347242,55.0,19.401,19.384,56.178]
[1688316347424,20.0,19.4,19.388,21.817]
[1688316347624,55.0,19.399,19.388,21.817]
[1688316347825,20.0,19.398,19.388,21.817]
[1688316349545,20.0,19.403,19.388,21.817]
[1688316349728,55.0,19.402,19.388,21.817]
[1688316349929,20.0,19.401,19.388,21.817]
[1688316350227,55.0,19.4,19.388,21.817]
[1688316350419,20.0,19.399,19.388,21.817]
[1688316351741,20.0,19.403,19.388,21.817]
[1688316352042,55.0,19.402,19.388,21.817]
[1688316352257,20.0,19.401,19.388,21.817]
[1688316352948,20.0,19.403,19.388,21.817]
[1688316353124,55.0,19.402,19.388,21.817]
[1688316353323,20.0,19.401,19.388,21.817]
[1688316354750,55.0,19.4,19.388,21.817]
[1688316355045,20.0,19.399,19.383,56.183]
[1688316355240,20.0,19.399,19.385,21.82]
[1688316357048,55.0,19.398,19.385,21.82]
[1688316357227,20.0,19.397,19.385,21.82]
[1688316360250,55.0,19.396,19.379,56.193]
[1688316360832,55.0,19.396,19.379,67.03019922]
[1688316361032,55.0,19.396,19.385,21.82]
[1688316361444,55.0,19.396,19.383,21.823]
[1688316361640,55.0,19.396,19.377,102.54]
[1688316361641,64.62709913,19.396,19.377,56.199]
[1688316361835,20.0,19.397,19.381,56.186]
[1688316362243,20.0,19.397,19.381,67.02319922]
[1688316362551,20.0,19.398,19.381,67.02319922]
[1688316363245,21.808,19.396,19.383,21.822]
[1688316363451,81.93566026,19.401,19.383,21.822]
[1688316363745,25.80366026,19.401,19.39,21.98]
[1688316363935,111.05,19.42,19.394,180.415]
[1688316363936,96.9946,19.414,19.394,180.415]
[1688316364247,21.788,19.414,19.4,22.13]
[1688316364452,21.788,19.414,19.404,77.92]
[1688316365636,21.788,19.414,19.395,25.480839]
[1688316365944,21.795,19.408,19.4,21.803]
[1688316366139,21.794,19.409,19.4,21.803]
[1688316366447,21.794,19.409,19.4,44.003]
[1688316366649,21.792,19.411,19.4,44.003]
[1688316366836,282.59125605,19.419,19.4,44.003]
[1688316367038,20.0,19.418,19.401,55.0]
[1688316367250,21.789,19.414,19.406,21.797]
[1688316368239,21.787,19.415,19.406,21.797]
[1688316374856,21.791,19.412,19.406,21.797]
[1688316375043,55.0,19.411,19.405,21.798]
[1688316375247,21.793,19.41,19.405,21.798]
[1688316376858,9.62709913,19.415,19.405,21.798]
[1688316377063,55.0,19.414,19.405,21.798]
[1688316378244,21.79,19.412,19.405,21.798]
[1688316381042,25.87430119,19.415,19.405,21.798]
[1688316381261,85.71009913,19.418,19.405,21.798]
[1688316382363,21.788,19.415,19.405,21.798]
[1688316386061,21.786,19.417,19.405,21.798]
[1688316386562,20.0,19.416,19.405,21.798]
[1688316386866,41.786,19.416,19.405,21.798]
[1688316391565,20.0,19.416,19.406,55.0]
[1688316391768,20.0,19.417,19.409,77.901]
[1688316392566,41.786,19.417,19.409,21.794]
[1688316393062,55.0,19.416,19.407,21.795]
[1688316393266,21.789,19.413,19.405,21.797]
[1688316393857,29.62709913,19.417,19.405,21.797]
[1688316394154,21.786,19.416,19.405,21.797]
[1688316395366,21.782,19.42,19.41,22.15]
[1688316395662,21.78,19.422,19.413,21.789]
[1688316400470,21.783,19.419,19.406,56.114]
[1688316400652,21.783,19.419,19.408,21.795]
[1688316400853,75.0,19.418,19.408,21.795]
[1688316401160,21.787,19.415,19.408,21.795]
[1688316404159,124.13,19.415,19.403,21.799]
[1688316404355,77.896,19.411,19.396,56.144]
[1688316404569,77.91,19.407,19.398,21.806]
[1688316404778,77.91,19.407,19.393,56.153]
[1688316404981,21.801,19.403,19.388,102.485]
[1688316405157,77.943,19.399,19.389,30.0]
[1688316405364,20.0,19.398,19.381,56.187]
[1688316405555,77.968,19.393,19.378,158.733]
[1688316405963,55.0,19.392,19.378,158.733]
[1688316406258,21.817,19.388,19.382,21.823]
[1688316406461,21.816,19.389,19.382,21.823]
[1688316406679,55.0,19.392,19.382,124.34]
[1688316406975,56.148,19.395,19.382,124.34]
[1688316407183,55.0,19.394,19.382,124.34]
[1688316408077,21.815,19.391,19.375,102.55]
[1688316408261,21.815,19.391,19.382,21.823]
[1688316408671,21.818,19.388,19.382,21.823]
[1688316410494,26.2128722,19.395,19.383,55.0]
[1688316410668,26.2128722,19.395,19.386,21.819]
[1688316410669,21.812,19.393,19.386,21.819]
[1688316411563,21.811,19.394,19.386,21.819]
[1688316412878,55.0,19.393,19.385,21.82]
[1688316413182,21.814,19.391,19.384,21.821]
[1688316413376,55.0,19.39,19.382,21.823]
[1688316413679,21.818,19.388,19.382,21.823]
[1688316413980,21.82,19.386,19.382,21.823]
[1688316414366,21.818,19.388,19.382,21.823]
[1688316414783,21.819,19.387,19.382,21.823]
[1688316415978,55.0,19.386,19.382,21.823]
[1688316416179,21.821,19.385,19.38,21.825]
[1688316416480,55.0,19.384,19.38,21.825]
[1688316416681,76.822,19.384,19.38,21.825]
[1688316417079,21.822,19.384,19.38,21.825]
[1688316421794,21.816,19.389,19.38,78.016]
[1688316422087,102.448,19.396,19.38,78.016]
[1688316422290,21.814,19.392,19.38,78.016]
[1688316422470,21.814,19.392,19.384,78.0]
[1688316423278,25.37501952,19.4,19.384,180.507]
[1688316423477,21.796,19.407,19.39,22.03]
[1688316423782,102.334,19.417,19.399,180.368]
[1688316423983,102.334,19.417,19.4,55.0]
[1688316424176,21.79,19.412,19.405,21.798]
[1688316424371,21.79,19.412,19.396,102.441]
[1688316424572,21.79,19.412,19.39,102.473]
[1688316424783,77.921,19.404,19.396,21.808]
[1688316425085,77.921,19.404,19.391,56.159]
[1688316425288,77.921,19.404,19.391,21.814]
[1688316425491,55.0,19.403,19.391,21.814]
[1688316425789,21.804,19.4,19.391,21.814]
[1688316426488,55.0,19.399,19.39,21.815]
[1688316426690,21.808,19.397,19.38,22.1]
[1688316426895,75.0,19.396,19.38,22.1]
[1688316427190,21.812,19.393,19.389,21.815]
[1688316428292,21.81,19.394,19.389,21.815]
[1688316432097,21.81,19.394,19.382,102.513]
[1688316432299,21.81,19.394,19.383,56.182]
[1688316432488,21.81,19.394,19.385,21.82]
[1688316432686,21.81,19.394,19.383,21.822]
[1688316432898,55.0,19.393,19.38,56.191]
[1688316433195,21.816,19.39,19.383,21.822]
[1688316433681,21.814,19.392,19.383,21.822]
[1688316435899,55.0,19.391,19.383,21.822]
[1688316436097,21.816,19.389,19.383,21.822]
[1688316436300,21.816,19.39,19.383,21.822]
[1688316436503,21.815,19.391,19.383,21.822]
[1688316441297,21.817,19.388,19.383,21.822]
[1688316441481,21.82,19.386,19.382,21.824]
[1688316442803,21.818,19.387,19.382,21.824]
[1688316443005,20.0,19.386,19.382,21.824]
[1688316443700,21.816,19.39,19.382,21.824]
[1688316456394,21.818,19.387,19.382,21.824]
[1688316459220,21.817,19.389,19.382,21.824]
[1688316459403,128.78167235,19.396,19.382,21.824]
[1688316459606,56.155,19.393,19.382,21.824]
[1688316460007,56.187,19.399,19.383,55.0]
[1688316460315,20.0,19.398,19.387,21.817]
[1688316460806,20.0,19.399,19.387,21.817]
[1688316461520,55.0,19.398,19.387,21.817]
[1688316461721,20.0,19.397,19.387,21.817]
[1688316461923,20.0,19.399,19.387,21.817]
[1688316462619,26.38110097,19.4,19.387,21.817]
[1688316462817,26.38110097,19.4,19.39,22.03]
[1688316463123,94.3947,19.413,19.393,180.424]
[1688316463509,20.0,19.412,19.393,77.965]
[1688316465024,55.0,19.411,19.393,77.965]
[1688316465245,20.0,19.41,19.393,77.965]
[1688316465522,55.0,19.409,19.393,77.965]
[1688316465710,20.0,19.408,19.393,77.965]
[1688316465909,55.0,19.407,19.393,77.965]
[1688316466416,20.0,19.406,19.393,77.965]
[1688316466621,55.0,19.405,19.393,77.965]
[1688316467623,55.0,19.405,19.393,21.811]
[1688316469522,81.42434319,19.405,19.393,21.811]
[1688316472621,81.42434319,19.405,19.386,102.491]
[1688316472823,21.98,19.4,19.385,21.82]
[1688316473026,55.0,19.399,19.385,21.82]
[1688316473224,20.0,19.398,19.385,21.82]
[1688316473425,21.809,19.395,19.385,21.82]
[1688316473932,55.0,19.394,19.385,21.82]
[1688316474236,21.813,19.392,19.385,21.82]
[1688316480442,55.0,19.391,19.385,21.82]
[1688316480637,76.814,19.391,19.385,21.82]
[1688316481331,20.0,19.39,19.37,22.0]
[1688316481630,55.0,19.389,19.377,78.029]
[1688316481838,20.0,19.388,19.377,78.029]
[1688316482948,41.818,19.388,19.377,78.029]
[1688316483122,21.821,19.385,19.377,78.029]
[1688316484527,41.818,19.388,19.377,78.029]
[1688316485641,21.818,19.388,19.377,78.029]
[1688316485820,21.815,19.39,19.382,21.823]
[1688316487748,21.815,19.39,19.375,102.549]
[1688316487749,21.819,19.387,19.38,21.826]
[1688316488742,20.0,19.386,19.38,21.826]
[1688316488942,21.821,19.385,19.38,21.826]
[1688316490451,20.0,19.384,19.38,21.826]
[1688316490752,41.822,19.384,19.378,21.827]
[1688316490926,41.822,19.384,19.37,22.0]
[1688316491130,41.822,19.384,19.374,124.392]
[1688316491949,41.822,19.384,19.374,21.832]
[1688316492248,20.0,19.384,19.374,124.392]
[1688316492450,21.822,19.384,19.374,21.832]
[1688316493334,21.822,19.384,19.375,55.0]
[1688316493538,21.824,19.383,19.377,21.829]
[1688316493750,41.821,19.385,19.377,78.029]
[1688316493952,21.822,19.384,19.377,21.829]
[1688316499038,20.0,19.385,19.377,21.829]
[1688316499239,21.822,19.384,19.377,21.829]
[1688316499440,21.822,19.384,19.363,102.613]
[1688316499645,84.62709913,19.383,19.364,30.0]
[1688316499846,78.028,19.378,19.367,21.841]
[1688316500056,75.0,19.377,19.367,21.841]
[1688316500277,21.833,19.374,19.367,21.841]
[1688316502853,20.0,19.377,19.367,21.841]
[1688316503053,21.83,19.377,19.367,21.841]
[1688316503444,20.0,19.376,19.367,21.841]
[1688316503754,21.834,19.374,19.367,21.841]
[1688316504338,20.0,19.376,19.367,21.841]
[1688316504561,20.0,19.379,19.367,21.841]
[1688316505158,21.831,19.376,19.367,21.841]
[1688316505360,20.0,19.375,19.367,21.841]
[1688316505550,21.833,19.374,19.367,21.841]
[1688316507053,55.0,19.373,19.362,21.846]
[1688316507238,21.838,19.37,19.362,21.846]
[1688316508945,21.838,19.37,19.355,102.657]
[1688316508946,55.0,19.369,19.36,21.848]
[1688316509144,21.842,19.367,19.36,21.848]
[1688316510841,20.0,19.366,19.36,21.848]
[1688316511058,41.842,19.366,19.36,21.848]
[1688316513261,98.074,19.366,19.352,56.27]
[1688316514265,98.074,19.366,19.356,21.853]
[1688316515456,55.0,19.365,19.356,21.853]
[1688316515767,21.846,19.363,19.356,21.853]
[1688316516669,21.845,19.363,19.356,21.853]
[1688316520652,21.844,19.365,19.356,21.853]
[1688316520855,20.0,19.364,19.356,21.853]
[1688316521170,41.845,19.364,19.356,21.853]
[1688316522171,82.1668519,19.371,19.357,55.0]
[1688316522368,21.841,19.368,19.361,21.847]
[1688316522867,20.0,19.367,19.357,21.851]
[1688316523177,21.844,19.364,19.357,21.851]
[1688316523358,20.0,19.367,19.357,21.851]
[1688316523557,20.0,19.369,19.357,21.851]
[1688316524148,21.843,19.366,19.357,21.851]
[1688316524368,21.846,19.363,19.357,21.851]
[1688316525868,21.844,19.364,19.357,21.851]
[1688316527849,21.844,19.364,19.356,21.853]
[1688316528871,21.844,19.364,19.351,21.859]
[1688316529173,21.849,19.36,19.351,21.859]
[1688316529374,157.622,19.363,19.345,102.712]
[1688316529375,21.853,19.357,19.349,21.86]
[1688316529557,21.853,19.357,19.345,159.003]
[1688316529755,21.853,19.357,19.348,21.862]
[1688316529960,21.856,19.354,19.348,21.862]
[1688316530776,21.856,19.354,19.344,56.295]
[1688316530984,55.0,19.353,19.341,21.87]
[1688316531279,56.256,19.358,19.343,21.867]
[1688316531453,21.859,19.352,19.343,21.867]
[1688316532253,21.859,19.352,19.346,21.864]
[1688316533257,21.859,19.352,19.344,21.866]
[1688316534060,55.0,19.351,19.343,21.868]
[1688316534257,55.0,19.351,19.342,21.869]
[1688316534258,21.862,19.349,19.342,21.869]
[1688316534463,21.861,19.35,19.343,21.868]
[1688316539965,21.863,19.348,19.341,21.869]
[1688316540176,21.863,19.348,19.33,22.0]
[1688316540369,21.865,19.346,19.342,21.869]
[1688316540575,20.0,19.345,19.342,21.869]
[1688316540776,41.864,19.347,19.342,21.869]
[1688316540777,21.865,19.346,19.342,21.869]
[1688316540964,20.0,19.345,19.342,21.869]
[1688316541476,41.866,19.345,19.341,21.87]
[1688316541679,20.0,19.345,19.341,21.87]
[1688316541898,21.865,19.346,19.341,21.87]
[1688316542179,20.0,19.348,19.341,21.87]
[1688316542364,21.864,19.347,19.33,110.66]
[1688316542568,20.0,19.346,19.336,21.876]
[1688316542768,21.867,19.344,19.336,21.876]
[1688316543372,26.50943851,19.351,19.336,21.876]
[1688316543571,128.61803995,19.354,19.336,21.876]
[1688316543572,21.862,19.349,19.336,21.876]
[1688316545879,25.95203995,19.354,19.336,21.876]
[1688316546190,25.95203995,19.354,19.337,55.0]
[1688316546478,21.856,19.354,19.342,78.171]
[1688316547183,77.06,19.36,19.342,78.171]
[1688316547373,88.68,19.37,19.343,75.0]
[1688316547374,25.84012258,19.356,19.343,75.0]
[1688316547578,21.846,19.363,19.346,180.854]
[1688316547787,21.846,19.363,19.347,55.0]
[1688316548080,21.846,19.363,19.351,180.808]
[1688316548287,21.846,19.363,19.355,21.854]
[1688316551985,55.0,19.362,19.355,21.854]
[1688316552181,25.72074281,19.365,19.355,21.854]
[1688316552377,20.0,19.364,19.355,21.854]
[1688316552580,21.847,19.362,19.355,21.854]
[1688316553395,25.83710293,19.37,19.355,78.118]
[1688316553691,148.8741,19.378,19.36,180.73]
[1688316553988,20.0,19.377,19.361,55.0]
[1688316554179,148.8741,19.378,19.365,21.842]
[1688316554490,21.833,19.375,19.365,21.842]
[1688316554885,9.62709913,19.377,19.365,21.842]
[1688316554886,9.62709913,19.377,19.365,124.449]
[1688316555194,21.83,19.377,19.366,55.0]
[1688316555484,21.83,19.377,19.358,102.641]
[1688316555795,21.835,19.373,19.363,21.844]
[1688316556984,21.833,19.375,19.364,55.0]
[1688316557185,20.0,19.374,19.367,21.841]
[1688316557589,41.833,19.374,19.367,21.841]
[1688316559799,21.837,19.37,19.363,21.845]
[1688316562380,25.71911588,19.38,19.364,75.0]
[1688316562585,21.828,19.379,19.368,180.653]
[1688316562781,21.828,19.379,19.369,55.0]
[1688316563003,21.828,19.379,19.372,21.835]
[1688316564204,21.825,19.382,19.372,21.835]
[1688316567491,55.0,19.381,19.372,21.835]
[1688316567694,21.828,19.379,19.372,21.835]
[1688316568309,56.184,19.383,19.372,21.835]
[1688316568499,128.12899358,19.386,19.372,21.835]
[1688316568500,21.827,19.379,19.372,21.835]
[1688316569005,21.83,19.377,19.372,21.835]
[1688316569206,20.0,19.376,19.372,21.835]
[1688316569407,41.829,19.378,19.372,21.835]
[1688316570205,21.829,19.378,19.37,21.836]
[1688316570402,20.0,19.377,19.37,21.836]
[1688316570611,21.832,19.375,19.37,21.836]
[1688316570795,20.0,19.374,19.37,21.836]
[1688316571607,25.73255264,19.385,19.37,21.836]
[1688316571798,20.0,19.384,19.371,55.0]
[1688316571993,21.826,19.381,19.374,21.832]
[1688316574710,56.176,19.386,19.374,21.832]
[1688316574892,21.824,19.383,19.374,21.832]
[1688316578318,20.0,19.385,19.374,21.832]
[1688316578615,21.823,19.383,19.374,21.832]
[1688316580013,55.0,19.382,19.372,21.834]
[1688316580215,21.827,19.379,19.372,21.834]
[1688316584722,21.826,19.38,19.372,21.834]
[1688316588617,21.83,19.377,19.372,21.834]
[1688316590419,20.0,19.376,19.369,21.838]
[1688316590716,20.0,19.376,19.365,56.234]
[1688316590717,21.833,19.374,19.368,21.839]
[1688316594523,21.833,19.374,19.367,21.841]
[1688316596922,21.833,19.374,19.365,21.843]
[1688316597116,55.0,19.373,19.365,21.843]
[1688316597427,21.837,19.371,19.365,21.843]
[1688316597928,21.837,19.371,19.364,21.844]
[1688316600720,21.837,19.371,19.36,21.848]
[1688316600920,97.03,19.37,19.356,56.26]
[1688316601224,21.842,19.366,19.358,21.85]
[1688316601524,21.845,19.363,19.358,21.85]
[1688316602527,41.844,19.365,19.358,21.85]
[1688316606728,41.844,19.365,19.355,21.853]
[1688316607029,78.099,19.36,19.35,21.859]
[1688316607414,78.112,19.357,19.349,21.861]
[1688316607626,21.856,19.354,19.349,21.861]
[1688316607827,21.856,19.354,19.348,21.862]
[1688316609428,21.854,19.356,19.348,21.862]
[1688316609635,20.0,19.355,19.348,21.862]
[1688316610015,41.855,19.355,19.348,21.862]
[1688316610721,20.0,19.355,19.348,21.862]
[1688316610925,20.0,19.359,19.348,21.862]
[1688316611724,21.853,19.356,19.348,21.862]
[1688316612027,20.0,19.355,19.348,21.862]
[1688316612729,102.625,19.362,19.348,21.862]
[1688316612730,56.238,19.364,19.348,21.862]
[1688316612922,21.85,19.36,19.353,21.856]
[1688316614138,102.571,19.372,19.353,21.856]
[1688316614336,21.846,19.363,19.353,21.856]
[1688316614529,21.846,19.363,19.354,55.0]
[1688316614732,21.846,19.363,19.356,21.852]
[1688316615539,21.844,19.365,19.357,55.0]
[1688316615744,20.0,19.364,19.36,21.848]
[1688316615929,41.844,19.364,19.36,21.848]
[1688316616531,20.0,19.364,19.36,21.848]
[1688316617844,20.0,19.365,19.36,21.848]
[1688316619342,47.33,19.39,19.36,21.848]
[1688316619549,20.0,19.377,19.361,55.0]
[1688316619725,20.0,19.377,19.365,21.842]
[1688316620425,25.55100484,19.378,19.365,21.842]
[1688316620630,20.0,19.377,19.365,21.842]
[1688316621338,25.551005,19.383,19.365,21.842]
[1688316621534,20.0,19.382,19.366,55.0]
[1688316621734,29.62473254,19.385,19.37,21.837]
[1688316622135,84.62473254,19.385,19.37,21.837]
[1688316622823,55.0,19.384,19.37,21.837]
[1688316623026,20.0,19.383,19.37,21.837]
[1688316623234,55.0,19.382,19.37,21.837]
[1688316623438,20.0,19.381,19.37,21.837]
[1688316623827,20.0,19.384,19.37,21.837]
[1688316624039,20.0,19.385,19.372,21.834]
[1688316624438,20.0,19.385,19.372,78.049]
[1688316624626,20.0,19.399,19.38,21.825]
[1688316624828,112.5947,19.399,19.38,21.825]
[1688316625245,9.62473254,19.398,19.38,21.825]
[1688316625544,20.0,19.397,19.38,21.825]
[1688316625948,29.62473254,19.397,19.38,21.825]
[1688316627745,29.62473254,19.397,19.384,21.822]
[1688316628245,29.62473254,19.397,19.382,21.823]
[1688316628928,55.0,19.396,19.382,21.823]
[1688316629127,55.0,19.396,19.38,21.825]
[1688316629128,20.0,19.395,19.38,21.825]
[1688316629337,55.0,19.394,19.38,21.825]
[1688316629840,20.0,19.393,19.38,21.825]
[1688316630035,20.0,19.393,19.379,21.827]
[1688316630240,55.0,19.392,19.372,56.212]
[1688316630554,20.0,19.391,19.374,21.832]
[1688316630753,55.0,19.39,19.374,21.832]
[1688316630938,20.0,19.389,19.374,21.832]
[1688316631750,20.0,19.39,19.379,21.827]
[1688316632139,20.0,19.392,19.379,21.827]
[1688316633857,20.0,19.392,19.38,55.0]
[1688316634055,20.0,19.392,19.382,21.823]
[1688316636339,25.44224719,19.393,19.382,21.823]
[1688316636537,25.44224719,19.393,19.383,55.0]
[1688316636852,91.6814,19.399,19.386,21.819]
[1688316637052,91.6814,19.399,19.387,55.0]
[1688316637253,91.6814,19.399,19.388,21.816]
[1688316637452,20.0,19.398,19.388,21.816]
[1688316638554,26.25880288,19.399,19.39,21.814]
[1688316638953,97.645,19.405,19.39,21.814]
[1688316639159,25.98766928,19.405,19.39,21.814]
[1688316639557,64.62473254,19.408,19.39,21.814]
[1688316639848,152.645,19.407,19.39,21.814]
[1688316640052,172.645,19.407,19.39,21.814]
[1688316640554,182.26973254,19.407,19.383,113.34519922]
[1688316640736,182.26973254,19.407,19.388,21.817]
[1688316643039,182.26973254,19.407,19.389,55.0]
[1688316643040,20.0,19.407,19.389,55.0]
[1688316643255,20.0,19.407,19.394,21.81]
[1688316643751,25.59730703,19.409,19.394,21.81]
[1688316643959,20.0,19.408,19.394,21.81]
[1688316644342,25.597307,19.411,19.394,21.81]
[1688316644545,20.0,19.41,19.394,21.81]
[1688316644746,22.04,19.41,19.391,21.813]
[1688316644942,22.04,19.41,19.387,21.817]
[1688316644943,75.0,19.409,19.387,21.817]
[1688316645148,176.93313254,19.409,19.385,21.82]
[1688316645437,22.04,19.4,19.385,21.82]
[1688316645648,55.0,19.399,19.385,21.82]
[1688316645851,77.958,19.395,19.385,21.82]
[1688316646054,21.815,19.39,19.384,21.821]
[1688316649561,21.814,19.391,19.384,21.821]
[1688316651556,21.812,19.393,19.384,21.821]
[1688316651866,21.809,19.395,19.384,21.821]
[1688316652069,20.0,19.394,19.385,55.0]
[1688316652245,21.805,19.4,19.387,77.986]
[1688316652450,20.0,19.399,19.388,55.0]
[1688316652663,20.0,19.399,19.392,77.968]
[1688316653160,20.0,19.403,19.392,21.812]
[1688316653565,20.0,19.403,19.391,21.814]
[1688316653762,21.805,19.399,19.383,56.182]
[1688316654065,75.0,19.398,19.386,21.819]
[1688316654366,77.96,19.395,19.386,21.819]
[1688316654659,21.813,19.392,19.386,21.819]
[1688316658660,21.813,19.392,19.382,56.184]
[1688316660167,21.813,19.392,19.386,21.819]
[1688316663572,95.8321,19.397,19.386,21.819]
[1688316663771,20.0,19.396,19.386,21.819]
[1688316664151,20.0,19.396,19.384,21.821]
[1688316664373,55.0,19.395,19.384,21.821]
[1688316664563,20.0,19.394,19.383,21.822]
[1688316664770,55.0,19.393,19.383,21.822]
[1688316666669,20.0,19.394,19.383,78.005]
[1688316666862,20.0,19.396,19.383,78.005]
[1688316667068,55.0,19.395,19.383,78.005]
[1688316667571,20.0,19.394,19.383,78.005]
[1688316667870,21.81,19.395,19.383,78.005]
[1688316668072,20.0,19.394,19.383,78.005]
[1688316668561,20.0,19.394,19.384,55.0]
[1688316668871,20.0,19.394,19.387,124.309]
[1688316669172,41.809,19.396,19.387,21.818]
[1688316669964,20.0,19.396,19.387,21.818]
[1688316670178,21.809,19.395,19.385,21.82]
[1688316670368,21.809,19.395,19.38,56.189]
[1688316670369,20.0,19.394,19.383,21.822]
[1688316670571,21.814,19.391,19.383,21.822]
[1688316671574,21.814,19.391,19.377,99.9189]
[1688316671873,21.814,19.391,19.383,21.823]
[1688316675484,77.956,19.398,19.383,21.823]
[1688316675660,70.34395392,19.41,19.387,77.986]
[1688316675661,41.808,19.397,19.387,77.986]
[1688316680890,41.808,19.397,19.387,21.817]
[1688316681586,20.0,19.397,19.387,21.817]
[1688316681791,21.808,19.397,19.387,21.817]